fUSD/lending_fUSD_20240121
["ID","MTS","AMOUNT","RATE_DAILY","PERIOD"]
[312363532,1705833775772,-760.64,0.00041369,31]
[312363533,1705833775802,-500.0,0.00041369,31]
[312363534,1705833775827,-500.0,0.00041369,31]
[312363535,1705833775853,-500.0,0.00041369,31]
[312363536,1705833775879,-430.86043665,0.00041369,31]
[312363537,1705833775904,-4431.07,0.00041369,31]
[312363538,1705833775929,-1262.56,0.00041369,31]
[312363539,1705833775954,-500.0,0.00041369,31]
[312363540,1705833775980,-500.0,0.00041369,31]
[312363541,1705833776005,-500.0,0.00041369,31]
[312363542,1705833776030,-500.0,0.00041369,31]
[312363543,1705833776055,-520.85,0.00041369,31]
[312363544,1705833776081,-625.52,0.00041369,31]
[312363545,1705833776107,-500.0,0.00041369,31]
[312363546,1705833776133,-500.0,0.00041369,31]
[312363547,1705833776198,-500.0,0.00041369,31]
[312363548,1705833776223,-500.0,0.00041369,31]
[312363549,1705833776248,-376.35805178,0.00041369,31]
[312363550,1705833776339,-500.0,0.00041369,31]
[312363551,1705833776364,-500.0,0.00041369,31]
[312363552,1705833776392,-500.0,0.00041369,31]
[312363553,1705833776417,-607.48,0.00041369,31]
[312363554,1705833776441,-688.87,0.00041369,31]
[312363555,1705833776466,-633.81747692,0.00041369,31]
[312363556,1705833776491,-500.0,0.00041369,31]
[312363557,1705833776516,-500.0,0.00041369,31]
[312363558,1705833776539,-1548.26,0.00041369,31]
[312363559,1705833776563,-500.0,0.00041369,31]
[312363560,1705833776586,-500.0,0.00041369,31]
[312363561,1705833776609,-636.26,0.00041369,31]
[312363562,1705833776635,-500.0,0.00041369,31]
[312363563,1705833776658,-578.19,0.00041369,31]
[312363564,1705833776681,-518.84741541,0.00041369,31]
[312363565,1705833776710,-500.0,0.00041369,31]
[312363566,1705833776734,-500.0,0.00041369,31]
[312363567,1705833776758,-500.0,0.00041369,31]
[312363568,1705833776785,-530.41626899,0.00041369,31]
[312363569,1705833776809,-500.0,0.00041369,31]
[312363570,1705833776833,-500.0,0.00041369,31]
[312363571,1705833776857,-500.0,0.00041369,31]
[312363572,1705833776881,-500.0,0.00041369,31]
[312363573,1705833776904,-404.23318122,0.00041369,31]
[312363574,1705833776927,-500.0,0.00041369,31]
[312363575,1705833776951,-585.67,0.00041369,31]
[312363576,1705833776975,-500.0,0.00041369,31]
[312363577,1705833776999,-500.0,0.00041369,31]
[312363578,1705833777023,-500.0,0.00041369,31]
[312363579,1705833777047,-500.0,0.00041369,31]
[312363580,1705833777071,-500.0,0.00041369,31]
[312363581,1705833777100,-500.0,0.00041369,31]
[312363582,1705833777125,-541.04,0.00041369,31]
[312363583,1705833777150,-153.27131339,0.00041369,31]
[312363584,1705833777175,-500.0,0.00041369,31]
[312363585,1705833777200,-500.0,0.00041369,31]
[312363586,1705833777225,-1030.09,0.00041369,31]
[312363587,1705833777249,-202.45768246,0.00041369,31]
[312363588,1705833777276,-543.01347703,0.00041369,31]
[312363589,1705833777300,-538.6912429,0.00041369,31]
[312363590,1705833777324,-426.72324469,0.00041369,31]
[312363591,1705833777349,-516.95728644,0.00041369,31]
[312363592,1705833777373,-508.46124356,0.00041369,31]
[312363593,1705833777398,-319.2149962,0.00041369,31]
[312363594,1705833777422,-847.58,0.00041369,31]
[312363595,1705833777446,-840.2,0.00041369,31]
[312363596,1705833777469,-500.0,0.00041369,31]
[312363597,1705833777491,-500.0,0.00041369,31]
[312363598,1705833777515,-500.0,0.00041369,31]
[312363599,1705833777540,-500.0,0.00041369,31]
[312363600,1705833777563,-500.0,0.00041369,31]
[312363601,1705833777587,-347.36056473,0.00041369,31]
[312363602,1705833777612,-1652.7,0.00041369,31]
[312363603,1705833777637,-2133.18,0.00041369,31]
[312363604,1705833777661,-2469.83,0.00041369,31]
[312363605,1705833777685,-531.77481368,0.00041369,31]
[312363606,1705833777713,-500.0,0.00041369,31]
[312363607,1705833777738,-500.0,0.00041369,31]
[312363608,1705833777763,-500.0,0.00041369,31]
[312363609,1705833777789,-511.97411582,0.00041369,31]
[312363610,1705833777812,-500.0,0.00041369,31]
[312363611,1705833777836,-500.0,0.00041369,31]
[312363612,1705833777861,-500.0,0.00041369,31]
[312363613,1705833777886,-500.0,0.00041369,31]
[312363614,1705833777911,-1048.25,0.00041369,31]
[312363615,1705833777935,-3287.59,0.00041369,31]
[312363616,1705833777958,-271.71740343,0.00041369,31]
[312363617,1705833777982,-500.0,0.00041369,31]
[312363618,1705833778006,-500.0,0.00041369,31]
[312363619,1705833778029,-490.18450822,0.00041369,31]
[312363620,1705833778053,-786.02,0.00041369,31]
[312363621,1705833778077,-500.0,0.00041369,31]
[312363622,1705833778101,-500.0,0.00041369,31]
[312363623,1705833778125,-1697.74,0.00041369,31]
[312363624,1705833778149,-500.0,0.00041369,31]
[312363625,1705833778174,-500.0,0.00041369,31]
[312363626,1705833778199,-543.66,0.00041369,31]
[312363627,1705833778222,-500.0,0.00041369,31]
[312363628,1705833778246,-537.45731986,0.00041369,31]
[312363629,1705833778271,-644.2,0.00041369,31]
[312363630,1705833778296,-500.0,0.00041369,31]
[312363631,1705833778321,-500.0,0.00041369,31]
[312363632,1705833778347,-500.0,0.00041369,31]
[312363633,1705833778372,-525.13,0.00041369,31]
[312363634,1705833778396,-500.0,0.00041369,31]
[312363635,1705833778431,-500.0,0.00041369,31]
[312363636,1705833778456,-500.0,0.00041369,31]
[312363637,1705833778481,-612.48,0.00041369,31]
[312363638,1705833778505,-528.29241095,0.00041369,31]
[312363639,1705833778530,-500.0,0.00041369,31]
[312363640,1705833778554,-500.0,0.00041369,31]
[312363641,1705833778578,-500.0,0.00041369,31]
[312363642,1705833778603,-1625.29,0.00041369,31]
[312363643,1705833778628,-500.0,0.00041369,31]
[312363644,1705833778653,-1000.0,0.0004137,120]
[312363645,1705833778676,-156.83600397,0.00041416,30]
[312363646,1705833778701,-315.0,0.000415,30]
[312363647,1705833778729,-500.0,0.00041643,31]
[312363648,1705833778755,-251.11128187,0.00041643,31]
[312363649,1705833778781,-500.0,0.00041643,31]
[312363650,1705833778806,-500.0,0.00041643,31]
[312363651,1705833778833,-173.22097858,0.00041643,31]
[312363652,1705833778861,-517.60533929,0.00041643,31]
[312363653,1705833778887,-499.04533943,0.00041643,31]
[312363654,1705833778913,-500.0,0.00041643,31]
[312363655,1705833778938,-500.0,0.00041643,31]
[312363656,1705833778965,-500.0,0.00041643,31]
[312363657,1705833778998,-500.0,0.00041643,31]
[312363658,1705833779026,-618.78,0.00041643,31]
[312363659,1705833779053,-500.0,0.00041643,31]
[312363660,1705833779082,-351.04653154,0.00041643,31]
[312363661,1705833779111,-311.750316,0.00041643,31]
[312363662,1705833779138,-198.42865965,0.00041643,31]
[312363663,1705833779166,-500.0,0.00041643,31]
[312363664,1705833779194,-510.0,0.00041643,120]
[312363665,1705833779221,-800.0,0.00041643,30]
[312363666,1705833779248,-389.97521483,0.00041643,31]
[312363667,1705833779275,-393.34566873,0.00041643,31]
[312363668,1705833779302,-518.22233089,0.00041643,31]
[312363669,1705833779329,-258.98,0.00041643,31]
[312363670,1705833779355,-559.69077022,0.00041643,31]
[312363671,1705833779382,-500.69855339,0.00041643,31]
[312363672,1705833779408,-226.91993568,0.00041643,31]
[312363673,1705833779435,-500.0,0.00041643,31]
[312363674,1705833779462,-500.0,0.00041643,31]
[312363675,1705833779489,-267.48109663,0.00041643,31]
[312363676,1705833779516,-500.0,0.00041643,31]
[312363677,1705833779542,-500.0,0.00041643,31]
[312363678,1705833779572,-500.0,0.00041643,31]
[312363679,1705833779599,-500.0,0.00041643,31]
[312363680,1705833779625,-500.0,0.00041643,31]
[312363681,1705833779655,-500.0,0.00041643,31]
[312363682,1705833779682,-500.0,0.00041643,31]
[312363683,1705833779711,-500.0,0.00041643,31]
[312363684,1705833779739,-500.0,0.00041643,31]
[312363685,1705833779766,-522.55279194,0.00041643,31]
[312363686,1705833779793,-500.0,0.00041643,31]
[312363687,1705833779819,-500.0,0.00041643,31]
[312363688,1705833779845,-506.89369034,0.00041643,31]
[312363689,1705833779871,-500.0,0.00041643,31]
[312363690,1705833779895,-500.0,0.00041643,31]
[312363691,1705833779920,-506.96864116,0.00041643,31]
[312363692,1705833779945,-500.0,0.00041643,31]
[312363693,1705833779973,-500.0,0.00041643,31]
[312363694,1705833779999,-542.46185481,0.00041643,31]
[312363695,1705833780024,-500.0,0.00041643,31]
[312363696,1705833780051,-500.0,0.00041643,31]
[312363697,1705833780078,-500.0,0.00041643,31]
[312363698,1705833780104,-512.26728732,0.00041643,31]
[312363699,1705833780130,-333.37574704,0.00041643,31]
[312363700,1705833780157,-500.0,0.00041643,31]
[312363701,1705833780184,-452.57793127,0.00041643,31]
[312363702,1705833780210,-371.57877845,0.00041643,31]
[312363703,1705833780237,-233.82888404,0.00041643,31]
[312363704,1705833780264,-1710.77,0.00041643,31]
[312363705,1705833780291,-500.0,0.00041643,31]
[312363706,1705833780317,-500.0,0.00041643,31]
[312363707,1705833780343,-574.81964288,0.00041643,31]
[312363708,1705833780370,-500.0,0.00041643,31]
[312363709,1705833780397,-500.0,0.00041643,31]
[312363710,1705833780422,-500.0,0.00041643,31]
[312363711,1705833780448,-500.0,0.00041643,31]
[312363712,1705833780475,-500.0,0.00041643,31]
[312363713,1705833780502,-500.0,0.00041643,31]
[312363714,1705833780528,-250.0,0.00041643,31]
[312363715,1705833780555,-319.87644504,0.00041643,31]
[312363716,1705833780580,-500.0,0.00041643,31]
[312363717,1705833780609,-500.0,0.00041643,31]
[312363718,1705833780857,-250.59156505,0.00041643,31]
[312363719,1705833780886,-500.0,0.00041643,31]
[312363720,1705833780912,-500.0,0.00041643,31]
[312363721,1705833780937,-500.0,0.00041643,31]
[312363722,1705833780960,-500.0,0.00041643,31]
[312363723,1705833780985,-500.0,0.00041643,31]
[312363724,1705833781009,-500.0,0.00041643,31]
[312363725,1705833781034,-500.0,0.00041643,31]
[312363726,1705833781058,-500.0,0.00041643,31]
[312363727,1705833781081,-743.27,0.00041643,31]
[312363728,1705833781106,-500.0,0.00041643,31]
[312363729,1705833781130,-500.0,0.00041643,31]
[312363730,1705833781154,-500.0,0.00041643,31]
[312363731,1705833781179,-211.85707124,0.00041643,31]
[312363732,1705833781203,-852.56,0.00041643,31]
[312363733,1705833781227,-500.0,0.00041643,31]
[312363734,1705833781252,-500.0,0.00041643,31]
[312363735,1705833781277,-500.0,0.00041643,31]
[312363736,1705833781301,-2351.31,0.00041643,31]
[312363737,1705833781327,-200.67279038,0.00041643,31]
[312363738,1705833781352,-500.0,0.00041643,31]
[312363739,1705833781377,-6061.09,0.00041643,31]
[312363740,1705833781402,-500.0,0.00041643,31]
[312363741,1705833781427,-500.0,0.00041643,31]
[312363742,1705833781451,-842.03,0.00041643,31]
[312363743,1705833781475,-2114.52,0.00041643,31]
[312363744,1705833781501,-500.0,0.00041643,31]
[312363745,1705833781525,-500.0,0.00041643,31]
[312363746,1705833781549,-525.41507524,0.00041643,31]
[312363747,1705833781573,-500.0,0.00041643,31]
[312363748,1705833781598,-500.0,0.00041643,31]
[312363749,1705833781623,-500.0,0.00041643,31]
[312363750,1705833781647,-500.0,0.00041643,31]
[312363751,1705833781671,-667.03,0.00041643,31]
[312363752,1705833781694,-500.0,0.00041643,31]
[312363753,1705833781718,-500.21,0.00041643,31]
[312363754,1705833781741,-500.0,0.00041643,31]
[312363755,1705833781766,-500.0,0.00041643,31]
[312363756,1705833781791,-536.32,0.00041643,31]
[312363757,1705833781815,-500.0,0.00041643,31]
[312363758,1705833781838,-276.53861288,0.00041643,31]
[312363759,1705833781862,-500.0,0.00041643,31]
[312363760,1705833781886,-500.0,0.00041643,31]
[312363761,1705833781909,-500.0,0.00041643,31]
[312363762,1705833781936,-500.0,0.00041643,31]
[312363763,1705833781960,-500.0,0.00041643,31]
[312363764,1705833781983,-500.0,0.00041643,31]
[312363765,1705833782008,-3697.46,0.00041643,31]
[312363766,1705833782032,-174.37026583,0.00041643,31]
[312363767,1705833782057,-500.0,0.00041643,31]
[312363768,1705833782082,-961.99,0.00041643,31]
[312363769,1705833782106,-500.0,0.00041643,31]
[312363770,1705833782131,-3978.73,0.00041643,31]
[312363771,1705833782156,-500.0,0.00041643,31]
[312363772,1705833782180,-549.4,0.00041643,31]
[312363773,1705833782205,-494.66950676,0.00041643,31]
[312363774,1705833782229,-466.94006797,0.00041643,31]
[312363775,1705833782253,-500.0,0.00041643,31]
[312363776,1705833782279,-500.0,0.00041643,31]
[312363777,1705833782303,-500.0,0.00041643,31]
[312363778,1705833782329,-481.7319714,0.00041643,31]
[312363779,1705833782354,-500.0,0.00041643,31]
[312363780,1705833782379,-500.0,0.00041643,31]
[312363781,1705833782404,-500.0,0.00041643,31]
[312363782,1705833782429,-413.63725023,0.00041643,31]
[312363783,1705833782453,-500.0,0.00041643,31]
[312363784,1705833782476,-804.2,0.00041643,31]
[312363785,1705833782501,-500.0,0.00041643,31]
[312363786,1705833782526,-587.48,0.00041643,31]
[312363787,1705833782550,-500.0,0.00041643,31]
[312363788,1705833782608,-500.0,0.00041643,31]
[312363789,1705833782632,-1352.11,0.00041643,31]
[312363790,1705833782655,-2100.69,0.00041643,31]
[312363791,1705833782678,-562.07,0.00041643,31]
[312363792,1705833782702,-500.0,0.00041643,31]
[312363793,1705833782730,-500.0,0.00041643,31]
[312363794,1705833782754,-1049.96,0.00041643,31]
[312363795,1705833782779,-205.3978634,0.00041643,31]
[312363796,1705833782803,-611.52,0.00041643,31]
[312363797,1705833782829,-239.00643126,0.00041643,31]
[312363798,1705833782853,-500.0,0.00041643,31]
[312363799,1705833782877,-500.0,0.00041643,31]
[312363800,1705833782900,-760.64,0.00041643,31]
[312363801,1705833782923,-500.0,0.00041643,31]
[312363802,1705833782946,-500.0,0.00041643,31]
[312363803,1705833782971,-500.0,0.00041643,31]
[312363804,1705833782995,-4431.07,0.00041643,31]
[312363805,1705833783021,-1262.56,0.00041643,31]
[312363806,1705833783045,-511.79089224,0.00041643,31]
[312363807,1705833783069,-500.0,0.00041643,31]
[312363808,1705833783092,-500.0,0.00041643,31]
[312363809,1705833783117,-500.0,0.00041643,31]
[312363810,1705833783142,-520.85,0.00041643,31]
[312363811,1705833783167,-625.52,0.00041643,31]
[312363812,1705833783191,-500.0,0.00041643,31]
[312363813,1705833783215,-500.0,0.00041643,31]
[312363814,1705833783239,-500.0,0.00041643,31]
[312363815,1705833783265,-500.0,0.00041643,31]
[312363816,1705833783289,-577.47398647,0.00041643,31]
[312363817,1705833783313,-500.0,0.00041643,31]
[312363818,1705833783339,-500.0,0.00041643,31]
[312363819,1705833783365,-607.48,0.00041643,31]
[312363820,1705833783390,-688.87,0.00041643,31]
[312363821,1705833783414,-500.0,0.00041643,31]
[312363822,1705833783438,-605.22507647,0.00041643,31]
[312363823,1705833783461,-1548.26,0.00041643,31]
[312363824,1705833783485,-500.0,0.00041643,31]
[312363825,1705833783509,-500.0,0.00041643,31]
[312363826,1705833783533,-636.26,0.00041643,31]
[312363827,1705833783559,-500.0,0.00041643,31]
[312363828,1705833783583,-578.19,0.00041643,31]
[312363829,1705833783608,-500.0,0.00041643,31]
[312363830,1705833783633,-500.0,0.00041643,31]
[312363831,1705833783658,-247.56,0.00041643,31]
[312363832,1705833783682,-500.0,0.00041643,31]
[312363833,1705833783707,-500.0,0.00041643,31]
[312363834,1705833783732,-500.0,0.00041643,31]
[312363835,1705833783756,-194.9914533,0.00041643,31]
[312363836,1705833783779,-500.0,0.00041643,31]
[312363837,1705833783805,-585.67,0.00041643,31]
[312363838,1705833783828,-500.0,0.00041643,31]
[312363839,1705833783852,-500.0,0.00041643,31]
[312363840,1705833783877,-500.0,0.00041643,31]
[312363841,1705833783901,-516.12752071,0.00041643,31]
[312363842,1705833783925,-500.0,0.00041643,31]
[312363843,1705833783949,-500.0,0.00041643,31]
[312363844,1705833783972,-541.04,0.00041643,31]
[312363845,1705833783997,-591.51563455,0.00041643,31]
[312363846,1705833784022,-500.0,0.00041643,31]
[312363847,1705833784046,-1030.09,0.00041643,31]
[312363848,1705833784070,-847.58,0.00041643,31]
[312363849,1705833784094,-840.2,0.00041643,31]
[312363850,1705833784118,-440.57256252,0.00041643,31]
[312363851,1705833784143,-500.0,0.00041643,31]
[312363852,1705833784167,-500.0,0.00041643,31]
[312363853,1705833784191,-500.0,0.00041643,31]
[312363854,1705833784214,-500.0,0.00041643,31]
[312363855,1705833784238,-2133.18,0.00041643,31]
[312363856,1705833784262,-1652.7,0.00041643,31]
[312363857,1705833784286,-2469.83,0.00041643,31]
[312363858,1705833784310,-500.0,0.00041643,31]
[312363859,1705833784335,-500.0,0.00041643,31]
[312363860,1705833784359,-434.4048813,0.00041643,31]
[312363861,1705833784384,-500.0,0.00041643,31]
[312363862,1705833784408,-370.4322894,0.00041643,31]
[312363863,1705833784433,-500.0,0.00041643,31]
[312363864,1705833784457,-526.45969317,0.00041643,31]
[312363865,1705833784481,-1048.25,0.00041643,31]
[312363866,1705833784505,-3287.59,0.00041643,31]
[312363867,1705833784529,-500.0,0.00041643,31]
[312363868,1705833784553,-500.0,0.00041643,31]
[312363869,1705833784577,-786.02,0.00041643,31]
[312363870,1705833784603,-218.64864898,0.00041643,31]
[312363871,1705833784627,-500.0,0.00041643,31]
[312363872,1705833784651,-1697.74,0.00041643,31]
[312363873,1705833784674,-500.0,0.00041643,31]
[312363874,1705833784698,-500.0,0.00041643,31]
[312363875,1705833784727,-543.66,0.00041643,31]
[312363876,1705833784754,-500.0,0.00041643,31]
[312363877,1705833784779,-644.2,0.00041643,31]
[312363878,1705833784804,-326.01685433,0.00041643,31]
[312363879,1705833784827,-500.0,0.00041643,31]
[312363880,1705833784852,-500.0,0.00041643,31]
[312363881,1705833784877,-500.0,0.00041643,31]
[312363882,1705833784901,-500.0,0.00041643,31]
[312363883,1705833784926,-500.0,0.00041643,31]
[312363884,1705833784951,-612.48,0.00041643,31]
[312363885,1705833784976,-500.0,0.00041643,31]
[312363886,1705833785001,-500.0,0.00041643,31]
[312363887,1705833785026,-500.0,0.00041643,31]
[312363888,1705833785050,-500.0,0.00041643,31]
[312363889,1705833785077,-1625.29,0.00041643,31]
[312363890,1705833785103,-96624.0,0.0004165,30]
[312363891,1705833785127,-1483.0,0.0004165,30]
[312363892,1705833785152,-363.0,0.0004165,30]
[312363893,1705833785180,-965.15473562,0.00041824,30]
[312363894,1705833785207,-852.8667942,0.00041824,30]
[312363895,1705833785234,-1209.03146621,0.00041824,30]
[312363896,1705833785262,-422.33168454,0.00041824,30]
[312363897,1705833785289,-383.04573562,0.00041824,30]
[312363898,1705833785315,-1000.0,0.00041904,30]
[312363899,1705833785342,-512.01196716,0.00041917,31]
[312363900,1705833785369,-500.0,0.00041917,31]
[312363901,1705833785395,-500.0,0.00041917,31]
[312363902,1705833785436,-500.0,0.00041917,31]
[312363903,1705833785463,-511.15564755,0.00041917,31]
[312363904,1705833785490,-500.0,0.00041917,31]
[312363905,1705833785518,-500.0,0.00041917,31]
[312363906,1705833785545,-618.78,0.00041917,31]
[312363907,1705833785571,-500.0,0.00041917,31]
[312363908,1705833785597,-500.0,0.00041917,31]
[312363909,1705833785623,-510.0,0.00041917,120]
[312363910,1705833785648,-800.0,0.00041917,30]
[312363911,1705833785674,-500.0,0.00041917,31]
[312363912,1705833785700,-190.26102996,0.00041917,31]
[312363913,1705833785730,-500.0,0.00041917,31]
[312363914,1705833785756,-500.0,0.00041917,31]
[312363915,1705833785783,-500.0,0.00041917,31]
[312363916,1705833785811,-410.65930863,0.00041917,31]
[312363917,1705833785839,-500.0,0.00041917,31]
[312363918,1705833785866,-500.0,0.00041917,31]
[312363919,1705833785893,-410.57,0.00041917,31]
[312363920,1705833785920,-500.0,0.00041917,31]
[312363921,1705833785947,-500.0,0.00041917,31]
[312363922,1705833785973,-229.8832353,0.00041917,31]
[312363923,1705833786004,-500.0,0.00041917,31]
[312363924,1705833786031,-500.0,0.00041917,31]
[312363925,1705833786058,-500.0,0.00041917,31]
[312363926,1705833786085,-285.19075895,0.00041917,31]
[312363927,1705833786111,-350.96,0.00041917,31]
[312363928,1705833786138,-500.0,0.00041917,31]
[312363929,1705833786164,-202.91566881,0.00041917,31]
[312363930,1705833786191,-500.0,0.00041917,31]
[312363931,1705833786219,-500.0,0.00041917,31]
[312363932,1705833786246,-1710.77,0.00041917,31]
[312363933,1705833786273,-289.04973751,0.00041917,31]
[312363934,1705833786300,-500.0,0.00041917,31]
[312363935,1705833786326,-524.43762128,0.00041917,31]
[312363936,1705833786354,-434.76332427,0.00041917,31]
[312363937,1705833786386,-500.0,0.00041917,31]
[312363938,1705833786415,-500.0,0.00041917,31]
[312363939,1705833786442,-500.0,0.00041917,31]
[312363940,1705833786469,-370.96421769,0.00041917,31]
[312363941,1705833786495,-250.0,0.00041917,31]
[312363942,1705833786522,-500.0,0.00041917,31]
[312363943,1705833786549,-500.0,0.00041917,31]
[312363944,1705833786576,-500.0,0.00041917,31]
[312363945,1705833786603,-500.0,0.00041917,31]
[312363946,1705833786630,-500.0,0.00041917,31]
[312363947,1705833786658,-500.0,0.00041917,31]
[312363948,1705833786686,-593.05109142,0.00041917,31]
[312363949,1705833786937,-500.0,0.00041917,31]
[312363950,1705833786964,-500.0,0.00041917,31]
[312363951,1705833786989,-743.27,0.00041917,31]
[312363952,1705833787013,-500.0,0.00041917,31]
[312363953,1705833787037,-355.93069065,0.00041917,31]
[312363954,1705833787062,-500.0,0.00041917,31]
[312363955,1705833787086,-500.0,0.00041917,31]
[312363956,1705833787110,-435.16424785,0.00041917,31]
[312363957,1705833787135,-852.56,0.00041917,31]
[312363958,1705833787160,-500.0,0.00041917,31]
[312363959,1705833787185,-500.0,0.00041917,31]
[312363960,1705833787209,-2351.31,0.00041917,31]
[312363961,1705833787233,-500.0,0.00041917,31]
[312363962,1705833787258,-6061.09,0.00041917,31]
[312363963,1705833787282,-500.0,0.00041917,31]
[312363964,1705833787306,-500.0,0.00041917,31]
[312363965,1705833787331,-842.03,0.00041917,31]
[312363966,1705833787356,-2114.52,0.00041917,31]
[312363967,1705833787381,-500.0,0.00041917,31]
[312363968,1705833787405,-500.0,0.00041917,31]
[312363969,1705833787431,-500.0,0.00041917,31]
[312363970,1705833787455,-486.07493562,0.00041917,31]
[312363971,1705833787493,-500.0,0.00041917,31]
[312363972,1705833787520,-500.0,0.00041917,31]
[312363973,1705833787546,-667.03,0.00041917,31]
[312363974,1705833787572,-500.0,0.00041917,31]
[312363975,1705833787597,-500.21,0.00041917,31]
[312363976,1705833787622,-500.0,0.00041917,31]
[312363977,1705833787650,-500.0,0.00041917,31]
[312363978,1705833787676,-536.32,0.00041917,31]
[312363979,1705833787701,-500.0,0.00041917,31]
[312363980,1705833787727,-500.0,0.00041917,31]
[312363981,1705833787753,-500.0,0.00041917,31]
[312363982,1705833787778,-500.0,0.00041917,31]
[312363983,1705833787804,-500.0,0.00041917,31]
[312363984,1705833787829,-500.0,0.00041917,31]
[312363985,1705833787859,-500.0,0.00041917,31]
[312363986,1705833787885,-3697.46,0.00041917,31]
[312363987,1705833787911,-500.0,0.00041917,31]
[312363988,1705833787936,-961.99,0.00041917,31]
[312363989,1705833787961,-500.0,0.00041917,31]
[312363990,1705833787986,-3978.73,0.00041917,31]
[312363991,1705833788011,-500.0,0.00041917,31]
[312363992,1705833788040,-549.4,0.00041917,31]
[312363993,1705833788066,-500.0,0.00041917,31]
[312363994,1705833788095,-500.0,0.00041917,31]
[312363995,1705833788121,-500.0,0.00041917,31]
[312363996,1705833788147,-500.0,0.00041917,31]
[312363997,1705833788175,-500.0,0.00041917,31]
[312363998,1705833788201,-500.0,0.00041917,31]
[312363999,1705833788229,-804.2,0.00041917,31]
[312364000,1705833788256,-500.0,0.00041917,31]
[312364001,1705833788284,-500.0,0.00041917,31]
[312364002,1705833788312,-587.48,0.00041917,31]
[312364003,1705833788340,-500.0,0.00041917,31]
[312364004,1705833788367,-500.0,0.00041917,31]
[312364005,1705833788394,-1352.11,0.00041917,31]
[312364006,1705833788422,-2100.69,0.00041917,31]
[312364007,1705833788448,-562.07,0.00041917,31]
[312364008,1705833788475,-500.0,0.00041917,31]
[312364009,1705833788505,-397.86166942,0.00041917,31]
[312364010,1705833788532,-1049.96,0.00041917,31]
[312364011,1705833788558,-611.52,0.00041917,31]
[312364012,1705833788584,-500.0,0.00041917,31]
[312364013,1705833788609,-500.0,0.00041917,31]
[312364014,1705833788635,-760.64,0.00041917,31]
[312364015,1705833788661,-500.0,0.00041917,31]
[312364016,1705833788687,-246.96650895,0.00041917,31]
[312364017,1705833788715,-500.0,0.00041917,31]
[312364018,1705833788742,-4431.07,0.00041917,31]
[312364019,1705833788767,-1262.56,0.00041917,31]
[312364020,1705833788794,-500.0,0.00041917,31]
[312364021,1705833788820,-500.0,0.00041917,31]
[312364022,1705833788845,-500.0,0.00041917,31]
[312364023,1705833788871,-520.85,0.00041917,31]
[312364024,1705833788899,-625.52,0.00041917,31]
[312364025,1705833788925,-500.0,0.00041917,31]
[312364026,1705833788950,-500.0,0.00041917,31]
[312364027,1705833788974,-500.0,0.00041917,31]
[312364028,1705833788999,-500.0,0.00041917,31]
[312364029,1705833789024,-500.0,0.00041917,31]
[312364030,1705833789050,-500.0,0.00041917,31]
[312364031,1705833789074,-607.48,0.00041917,31]